{"text_format":"1","workbook":"xlsx","n_sheets":7,"sheets":["التقرير","الادخال والترحيل","ديون","ديون مكفولة","دين خارجى","دين داخلى","دين رائج"],"not_rendered":{"charts":0,"images":0,"macros":1,"external_links":0,"defined_names":1,"comments":0,"pivot_tables":0},"unopened":[],"bounds":{"document_bytes":16777216,"sheet_cells":100000,"rows_first":2000,"rows_last":500,"rows_between":2000,"halvings":0,"cell_chars":16384,"cell_head_chars":4096},"cells_cut":0,"cells_raw":0,"read":"whole","date_system":"1900"}

{"sheet":"التقرير","index":0,"n_rows":410,"n_cols":14,"rows_kept":410,"cut":false,"hidden":false,"merged":[[0,0,0,5],[11,8,11,13]]}
["report"]
["من تاريخ","الى تاريخ","نوع التقرير",null,"الحساب","رقم الاستمارة"]
["2021-01-01",null,"افرادى",null,"اللطيف"]
[]
["اسم الشيت","التاريخ","البيان","الحساب","مدين","دائن","رصيد"]
["دين داخلى","2021-01-03","معروف","اللطيف",100,null,{"$f":"E6-F6","v":100}]
["دين داخلى","2021-01-05","معروف","اللطيف",200,null,{"$f":"G6+E7-F7","v":300}]
["دين داخلى","2021-01-09","معروف","اللطيف",100,null,{"$f":"G7+E8-F8","v":400},null,null,null,null,"التعديل يكون بكتابة كلمة اما افرادى او اجمالى في نوع التقرير"]
["دين داخلى","2021-01-11","معروف","اللطيف",200,null,600,"الف الف الف شكر لحضرتك تعيش والله ينقصنى بس شيء",null,null,null,"نوع التقرير"]
["دين داخلى","2021-01-15","معروف","اللطيف",100,null,700,"الى في الجدول ده اتحليلى عايزة واحد تجميعى"]
["دين داخلى","2021-01-17","معروف","اللطيف",200,null,900,"لو اخترت نوع التقرير اجمالى يكون بالشكل الى بالاسفل"]
["دين رائج","2021-01-03","معروف","اللطيف",100,null,1000,null,"report"]
["دين رائج","2021-01-05","معروف","اللطيف",200,null,1200,null,"من تاريخ","الى تاريخ","نوع التقرير",null,"الحساب","رقم الاستمارة"]
["دين رائج","2021-01-09","معروف","اللطيف",100,null,1300,null,"2021-01-01",null,"اجمالى",null,"اللطيف"]
["دين رائج","2021-01-11","معروف","اللطيف",200,null,1500]
["دين رائج","2021-01-15","معروف","اللطيف",100,null,1600,null,"اسم الشيت","التاريخ","البيان","الحساب","مدين","دائن"]
["دين رائج","2021-01-17","معروف","اللطيف",200,null,1800,null,"دين داخلى",null,"معروف","اللطيف",900]
[null,null,null,null,null,null,1800,null,"دين رائج",null,"معروف","اللطيف",900]
[null,null,null,null,null,null,1800]
[null,null,null,null,null,null,1800]
[null,null,null,null,null,null,1800]
[null,null,null,null,null,null,1800]
[null,null,null,null,null,null,1800]
[null,null,null,null,null,null,1800]
[null,null,null,null,null,null,1800]
[null,null,null,null,null,null,1800]
[null,null,null,null,null,null,1800]
[null,null,null,null,null,null,1800]
[null,null,null,null,null,null,1800]
[null,null,null,null,null,null,1800]
[null,null,null,null,null,null,1800]
[null,null,null,null,null,null,1800]
[null,null,null,null,null,null,1800]
[null,null,null,null,null,null,1800]
[null,null,null,null,null,null,1800]
[null,null,null,null,null,null,1800]
[null,null,null,null,null,null,1800]
[null,null,null,null,null,null,1800]
[null,null,null,null,null,null,1800]
[null,null,null,null,null,null,1800]
[null,null,null,null,null,null,1800]
[null,null,null,null,null,null,1800]
[null,null,null,null,null,null,1800]
[null,null,null,null,null,null,1800]
[null,null,null,null,null,null,1800]
[null,null,null,null,null,null,1800]
[null,null,null,null,null,null,1800]
[null,null,null,null,null,null,1800]
[null,null,null,null,null,null,1800]
[null,null,null,null,null,null,1800]
[null,null,null,null,null,null,1800]
[null,null,null,null,null,null,1800]
[null,null,null,null,null,null,1800]
[null,null,null,null,null,null,1800]
[null,null,null,null,null,null,1800]
[null,null,null,null,null,null,1800]
[null,null,null,null,null,null,1800]
[null,null,null,null,null,null,1800]
[null,null,null,null,null,null,1800]
[null,null,null,null,null,null,1800]
[null,null,null,null,null,null,1800]
[null,null,null,null,null,null,1800]
[null,null,null,null,null,null,1800]
[null,null,null,null,null,null,1800]
[null,null,null,null,null,null,1800]
[null,null,null,null,null,null,1800]
[null,null,null,null,null,null,1800]
[null,null,null,null,null,null,1800]
[null,null,null,null,null,null,1800]
[null,null,null,null,null,null,1800]
[null,null,null,null,null,null,1800]
[null,null,null,null,null,null,{"$f":"G71+E72-F72","v":1800}]
[null,null,null,null,null,null,1800]
[null,null,null,null,null,null,1800]
[null,null,null,null,null,null,1800]
[null,null,null,null,null,null,1800]
[null,null,null,null,null,null,1800]
[null,null,null,null,null,null,1800]
[null,null,null,null,null,null,1800]
[null,null,null,null,null,null,1800]
[null,null,null,null,null,null,1800]
[null,null,null,null,null,null,1800]
[null,null,null,null,null,null,1800]
[null,null,null,null,null,null,1800]
[null,null,null,null,null,null,1800]
[null,null,null,null,null,null,1800]
[null,null,null,null,null,null,1800]
[null,null,null,null,null,null,1800]
[null,null,null,null,null,null,1800]
[null,null,null,null,null,null,1800]
[null,null,null,null,null,null,1800]
[null,null,null,null,null,null,1800]
[null,null,null,null,null,null,1800]
[null,null,null,null,null,null,1800]
[null,null,null,null,null,null,1800]
[null,null,null,null,null,null,1800]
[null,null,null,null,null,null,1800]
[null,null,null,null,null,null,1800]
[null,null,null,null,null,null,1800]
[null,null,null,null,null,null,1800]
[null,null,null,null,null,null,1800]
[null,null,null,null,null,null,1800]
[null,null,null,null,null,null,1800]
[null,null,null,null,null,null,1800]
[null,null,null,null,null,null,1800]
[null,null,null,null,null,null,1800]
[null,null,null,null,null,null,1800]
[null,null,null,null,null,null,1800]
[null,null,null,null,null,null,1800]
[null,null,null,null,null,null,1800]
[null,null,null,null,null,null,1800]
[null,null,null,null,null,null,1800]
[null,null,null,null,null,null,1800]
[null,null,null,null,null,null,1800]
[null,null,null,null,null,null,1800]
[null,null,null,null,null,null,1800]
[null,null,null,null,null,null,1800]
[null,null,null,null,null,null,1800]
[null,null,null,null,null,null,1800]
[null,null,null,null,null,null,1800]
[null,null,null,null,null,null,1800]
[null,null,null,null,null,null,1800]
[null,null,null,null,null,null,1800]
[null,null,null,null,null,null,1800]
[null,null,null,null,null,null,1800]
[null,null,null,null,null,null,1800]
[null,null,null,null,null,null,1800]
[null,null,null,null,null,null,1800]
[null,null,null,null,null,null,1800]
[null,null,null,null,null,null,1800]
[null,null,null,null,null,null,1800]
[null,null,null,null,null,null,1800]
[null,null,null,null,null,null,1800]
[null,null,null,null,null,null,1800]
[null,null,null,null,null,null,1800]
[null,null,null,null,null,null,{"$f":"G135+E136-F136","v":1800}]
[null,null,null,null,null,null,1800]
[null,null,null,null,null,null,1800]
[null,null,null,null,null,null,1800]
[null,null,null,null,null,null,1800]
[null,null,null,null,null,null,1800]
[null,null,null,null,null,null,1800]
[null,null,null,null,null,null,1800]
[null,null,null,null,null,null,1800]
[null,null,null,null,null,null,1800]
[null,null,null,null,null,null,1800]
[null,null,null,null,null,null,1800]
[null,null,null,null,null,null,1800]
[null,null,null,null,null,null,1800]
[null,null,null,null,null,null,1800]
[null,null,null,null,null,null,1800]
[null,null,null,null,null,null,1800]
[null,null,null,null,null,null,1800]
[null,null,null,null,null,null,1800]
[null,null,null,null,null,null,1800]
[null,null,null,null,null,null,1800]
[null,null,null,null,null,null,1800]
[null,null,null,null,null,null,1800]
[null,null,null,null,null,null,1800]
[null,null,null,null,null,null,1800]
[null,null,null,null,null,null,1800]
[null,null,null,null,null,null,1800]
[null,null,null,null,null,null,1800]
[null,null,null,null,null,null,1800]
[null,null,null,null,null,null,1800]
[null,null,null,null,null,null,1800]
[null,null,null,null,null,null,1800]
[null,null,null,null,null,null,1800]
[null,null,null,null,null,null,1800]
[null,null,null,null,null,null,1800]
[null,null,null,null,null,null,1800]
[null,null,null,null,null,null,1800]
[null,null,null,null,null,null,1800]
[null,null,null,null,null,null,1800]
[null,null,null,null,null,null,1800]
[null,null,null,null,null,null,1800]
[null,null,null,null,null,null,1800]
[null,null,null,null,null,null,1800]
[null,null,null,null,null,null,1800]
[null,null,null,null,null,null,1800]
[null,null,null,null,null,null,1800]
[null,null,null,null,null,null,1800]
[null,null,null,null,null,null,1800]
[null,null,null,null,null,null,1800]
[null,null,null,null,null,null,1800]
[null,null,null,null,null,null,1800]
[null,null,null,null,null,null,1800]
[null,null,null,null,null,null,1800]
[null,null,null,null,null,null,1800]
[null,null,null,null,null,null,1800]
[null,null,null,null,null,null,1800]
[null,null,null,null,null,null,1800]
[null,null,null,null,null,null,1800]
[null,null,null,null,null,null,1800]
[null,null,null,null,null,null,1800]
[null,null,null,null,null,null,1800]
[null,null,null,null,null,null,1800]
[null,null,null,null,null,null,1800]
[null,null,null,null,null,null,1800]
[null,null,null,null,null,null,{"$f":"G199+E200-F200","v":1800}]
[null,null,null,null,null,null,1800]
[null,null,null,null,null,null,1800]
[null,null,null,null,null,null,1800]
[null,null,null,null,null,null,1800]
[null,null,null,null,null,null,1800]
[null,null,null,null,null,null,1800]
[null,null,null,null,null,null,1800]
[null,null,null,null,null,null,1800]
[null,null,null,null,null,null,1800]
[null,null,null,null,null,null,1800]
[null,null,null,null,null,null,1800]
[null,null,null,null,null,null,1800]
[null,null,null,null,null,null,1800]
[null,null,null,null,null,null,1800]
[null,null,null,null,null,null,1800]
[null,null,null,null,null,null,1800]
[null,null,null,null,null,null,1800]
[null,null,null,null,null,null,1800]
[null,null,null,null,null,null,1800]
[null,null,null,null,null,null,1800]
[null,null,null,null,null,null,1800]
[null,null,null,null,null,null,1800]
[null,null,null,null,null,null,1800]
[null,null,null,null,null,null,1800]
[null,null,null,null,null,null,1800]
[null,null,null,null,null,null,1800]
[null,null,null,null,null,null,1800]
[null,null,null,null,null,null,1800]
[null,null,null,null,null,null,1800]
[null,null,null,null,null,null,1800]
[null,null,null,null,null,null,1800]
[null,null,null,null,null,null,1800]
[null,null,null,null,null,null,1800]
[null,null,null,null,null,null,1800]
[null,null,null,null,null,null,1800]
[null,null,null,null,null,null,1800]
[null,null,null,null,null,null,1800]
[null,null,null,null,null,null,1800]
[null,null,null,null,null,null,1800]
[null,null,null,null,null,null,1800]
[null,null,null,null,null,null,1800]
[null,null,null,null,null,null,1800]
[null,null,null,null,null,null,1800]
[null,null,null,null,null,null,1800]
[null,null,null,null,null,null,1800]
[null,null,null,null,null,null,1800]
[null,null,null,null,null,null,1800]
[null,null,null,null,null,null,1800]
[null,null,null,null,null,null,1800]
[null,null,null,null,null,null,1800]
[null,null,null,null,null,null,1800]
[null,null,null,null,null,null,1800]
[null,null,null,null,null,null,1800]
[null,null,null,null,null,null,1800]
[null,null,null,null,null,null,1800]
[null,null,null,null,null,null,1800]
[null,null,null,null,null,null,1800]
[null,null,null,null,null,null,1800]
[null,null,null,null,null,null,1800]
[null,null,null,null,null,null,1800]
[null,null,null,null,null,null,1800]
[null,null,null,null,null,null,1800]
[null,null,null,null,null,null,1800]
[null,null,null,null,null,null,{"$f":"G263+E264-F264","v":1800}]
[null,null,null,null,null,null,1800]
[null,null,null,null,null,null,1800]
[null,null,null,null,null,null,1800]
[null,null,null,null,null,null,1800]
[null,null,null,null,null,null,1800]
[null,null,null,null,null,null,1800]
[null,null,null,null,null,null,1800]
[null,null,null,null,null,null,1800]
[null,null,null,null,null,null,1800]
[null,null,null,null,null,null,1800]
[null,null,null,null,null,null,1800]
[null,null,null,null,null,null,1800]
[null,null,null,null,null,null,1800]
[null,null,null,null,null,null,1800]
[null,null,null,null,null,null,1800]
[null,null,null,null,null,null,1800]
[null,null,null,null,null,null,1800]
[null,null,null,null,null,null,1800]
[null,null,null,null,null,null,1800]
[null,null,null,null,null,null,1800]
[null,null,null,null,null,null,1800]
[null,null,null,null,null,null,1800]
[null,null,null,null,null,null,1800]
[null,null,null,null,null,null,1800]
[null,null,null,null,null,null,1800]
[null,null,null,null,null,null,1800]
[null,null,null,null,null,null,1800]
[null,null,null,null,null,null,1800]
[null,null,null,null,null,null,1800]
[null,null,null,null,null,null,1800]
[null,null,null,null,null,null,1800]
[null,null,null,null,null,null,1800]
[null,null,null,null,null,null,1800]
[null,null,null,null,null,null,1800]
[null,null,null,null,null,null,1800]
[null,null,null,null,null,null,1800]
[null,null,null,null,null,null,1800]
[null,null,null,null,null,null,1800]
[null,null,null,null,null,null,1800]
[null,null,null,null,null,null,1800]
[null,null,null,null,null,null,1800]
[null,null,null,null,null,null,1800]
[null,null,null,null,null,null,1800]
[null,null,null,null,null,null,1800]
[null,null,null,null,null,null,1800]
[null,null,null,null,null,null,1800]
[null,null,null,null,null,null,1800]
[null,null,null,null,null,null,1800]
[null,null,null,null,null,null,1800]
[null,null,null,null,null,null,1800]
[null,null,null,null,null,null,1800]
[null,null,null,null,null,null,1800]
[null,null,null,null,null,null,1800]
[null,null,null,null,null,null,1800]
[null,null,null,null,null,null,1800]
[null,null,null,null,null,null,1800]
[null,null,null,null,null,null,1800]
[null,null,null,null,null,null,1800]
[null,null,null,null,null,null,1800]
[null,null,null,null,null,null,1800]
[null,null,null,null,null,null,1800]
[null,null,null,null,null,null,1800]
[null,null,null,null,null,null,1800]
[null,null,null,null,null,null,{"$f":"G327+E328-F328","v":1800}]
[null,null,null,null,null,null,1800]
[null,null,null,null,null,null,1800]
[null,null,null,null,null,null,1800]
[null,null,null,null,null,null,1800]
[null,null,null,null,null,null,1800]
[null,null,null,null,null,null,1800]
[null,null,null,null,null,null,1800]
[null,null,null,null,null,null,1800]
[null,null,null,null,null,null,1800]
[null,null,null,null,null,null,1800]
[null,null,null,null,null,null,1800]
[null,null,null,null,null,null,1800]
[null,null,null,null,null,null,1800]
[null,null,null,null,null,null,1800]
[null,null,null,null,null,null,1800]
[null,null,null,null,null,null,1800]
[null,null,null,null,null,null,1800]
[null,null,null,null,null,null,1800]
[null,null,null,null,null,null,1800]
[null,null,null,null,null,null,1800]
[null,null,null,null,null,null,1800]
[null,null,null,null,null,null,1800]
[null,null,null,null,null,null,1800]
[null,null,null,null,null,null,1800]
[null,null,null,null,null,null,1800]
[null,null,null,null,null,null,1800]
[null,null,null,null,null,null,1800]
[null,null,null,null,null,null,1800]
[null,null,null,null,null,null,1800]
[null,null,null,null,null,null,1800]
[null,null,null,null,null,null,1800]
[null,null,null,null,null,null,1800]
[null,null,null,null,null,null,1800]
[null,null,null,null,null,null,1800]
[null,null,null,null,null,null,1800]
[null,null,null,null,null,null,1800]
[null,null,null,null,null,null,1800]
[null,null,null,null,null,null,1800]
[null,null,null,null,null,null,1800]
[null,null,null,null,null,null,1800]
[null,null,null,null,null,null,1800]
[null,null,null,null,null,null,1800]
[null,null,null,null,null,null,1800]
[null,null,null,null,null,null,1800]
[null,null,null,null,null,null,1800]
[null,null,null,null,null,null,1800]
[null,null,null,null,null,null,1800]
[null,null,null,null,null,null,1800]
[null,null,null,null,null,null,1800]
[null,null,null,null,null,null,1800]
[null,null,null,null,null,null,1800]
[null,null,null,null,null,null,1800]
[null,null,null,null,null,null,1800]
[null,null,null,null,null,null,1800]
[null,null,null,null,null,null,1800]
[null,null,null,null,null,null,1800]
[null,null,null,null,null,null,1800]
[null,null,null,null,null,null,1800]
[null,null,null,null,null,null,1800]
[null,null,null,null,null,null,1800]
[null,null,null,null,null,null,1800]
[null,null,null,null,null,null,1800]
[null,null,null,null,null,null,1800]
[null,null,null,null,null,null,{"$f":"G391+E392-F392","v":1800}]
[null,null,null,null,null,null,1800]
[null,null,null,null,null,null,1800]
[null,null,null,null,null,null,1800]
[null,null,null,null,null,null,1800]
[null,null,null,null,null,null,1800]
[null,null,null,null,null,null,1800]
[null,null,null,null,null,null,1800]
[null,null,null,null,null,null,1800]
[null,null,null,null,null,null,1800]
[null,null,null,null,null,null,1800]
[null,null,null,null,null,null,1800]
[null,null,null,null,null,null,1800]
[null,null,null,null,null,null,{"$f":"G404+E405-F405","v":1800}]
[null,null,null,null,null,null,1800]
[null,null,null,null,null,null,1800]
[null,null,null,null,null,null,1800]
[null,null,null,null,null,null,1800]
[null,null,null,null,null,null,1800]

{"sheet":"الادخال والترحيل","index":1,"n_rows":19,"n_cols":13,"rows_kept":19,"cut":false,"hidden":false,"merged":[]}
["التاريخ ","رقم الاستمارة","البيان","الحساب المرحل اليه","المبلغ مدين","المبلغ دائن","اختار اسم الشيت المرحل اليه",null,null,null,null,null,"اسم الشيت"]
["2021-01-01",5000,null,null,null,null,"دين رائج",null,null,null,null,null,"ديون"]
[null,null,"استثمار","البائع الأول",400,null,"معادلة القيد متزن لمعرفة خلل القيد",{"$f":"SUM(E3:E20-F3:F20)","v":0},null,null,null,null,"ديون مكفولة"]
[null,null,"خسارة","البائع المتغيب من مدة",0,null,"معادلة جمع المدين والدائن",{"$f":"SUM(E3:E20)","v":900},{"$f":"SUM(F3:F20)","v":900},null,null,null,"دين خارجى"]
[null,null,"غير معروف","البائع الظريف",null,500,null,null,null,null,null,null,"دين داخلى"]
[null,null,"معروف","اللطيف",100,null,null,"ممكن مساعدة في كود للترحيل الى الشيتات",null,null,null,null,"دين رائج"]
[null,null,"مش من هنا","خفيف الدم",0,null,null,"المطلوب التاريخ المكتوب فىa2 ورقم الاستمارة"]
[null,null,"من هنا","ثقيل الدم",null,0,null,"يتم ترحيلهم مع كل بيان "]
[null,null,"استثمار","البائع الأول",200,null,null,"يتم الترحيل للمدين او الدائن اذا كان هناك رقم مكتوب"]
[null,null,"معروف","اللطيف",200,null,null,"في عمود المدين او الدائن اما اذا كان العمودين فارغين"]
[null,null,"غير معروف","البائع الظريف",null,400,null,"او يحتوى على صفر لا يتم ترحيل هذا الصف "]
[null,null,null,null,null,null,null,"الترحيل فقط للمبالغ"]
[null,null,null,null,null,null,null,"لانى كاتبة كل الحسابات وعايزة الترحيل يتم فقط للى اكتب فيه رقم"]
[null,null,null,null,null,null,null,"سواء مدين او دائن "]
[null,null,null,null,null,null,null,"الشيت الى هيترحل اليه اختاره من قائمة في f2"]
[null,null,null,null,null,null,null,"شرط الترحيل ان يكون هناك رقم في عمود المدين او الدائن"]
[null,null,null,null,null,null,null,"فيترحل الصف الى به رقم في عمود الدائن او المدين"]
[null,null,null,null,null,null,null,"شاكرة فضلكم"]
[null,null,null,null,null,null,null,"النتائج المتوقع الحصول عليه كما في شيت ديون"]

{"sheet":"ديون","index":2,"n_rows":1,"n_cols":6,"rows_kept":1,"cut":false,"hidden":false,"merged":[]}
["التاريخ","البيان","رقم الاستمارة","الحساب","مدين","دائن"]

{"sheet":"ديون مكفولة","index":3,"n_rows":1,"n_cols":6,"rows_kept":1,"cut":false,"hidden":false,"merged":[]}
["التاريخ","البيان","رقم الاستمارة","الحساب","مدين","دائن"]

{"sheet":"دين خارجى","index":4,"n_rows":1,"n_cols":6,"rows_kept":1,"cut":false,"hidden":false,"merged":[]}
["التاريخ","البيان","رقم الاستمارة","الحساب","مدين","دائن"]

{"sheet":"دين داخلى","index":5,"n_rows":19,"n_cols":6,"rows_kept":19,"cut":false,"hidden":false,"merged":[]}
["التاريخ","البيان","رقم الاستمارة","الحساب","مدين","دائن"]
["2021-01-01","استثمار",5000,"البائع الأول",400]
["2021-01-02","غير معروف",5000,"البائع الظريف",null,500]
["2021-01-03","معروف",5000,"اللطيف",100]
["2021-01-04","استثمار",5000,"البائع الأول",200]
["2021-01-05","معروف",5000,"اللطيف",200]
["2021-01-06","غير معروف",5000,"البائع الظريف",null,400]
["2021-01-07","استثمار",5000,"البائع الأول",400]
["2021-01-08","غير معروف",5000,"البائع الظريف",null,500]
["2021-01-09","معروف",5000,"اللطيف",100]
["2021-01-10","استثمار",5000,"البائع الأول",200]
["2021-01-11","معروف",5000,"اللطيف",200]
["2021-01-12","غير معروف",5000,"البائع الظريف",null,400]
["2021-01-13","استثمار",5000,"البائع الأول",400]
["2021-01-14","غير معروف",5000,"البائع الظريف",null,500]
["2021-01-15","معروف",200,"اللطيف",100]
["2021-01-16","استثمار",5000,"البائع الأول",200]
["2021-01-17","معروف",5000,"اللطيف",200]
["2021-01-18","غير معروف",5000,"البائع الظريف",null,400]

{"sheet":"دين رائج","index":6,"n_rows":19,"n_cols":6,"rows_kept":19,"cut":false,"hidden":false,"merged":[]}
["التاريخ","البيان","رقم الاستمارة","الحساب","مدين","دائن"]
["2021-01-01","استثمار",5000,"البائع الأول",400]
["2021-01-02","غير معروف",5000,"البائع الظريف",null,500]
["2021-01-03","معروف",5000,"اللطيف",100]
["2021-01-04","استثمار",5000,"البائع الأول",200]
["2021-01-05","معروف",5000,"اللطيف",200]
["2021-01-06","غير معروف",5000,"البائع الظريف",null,400]
["2021-01-07","استثمار",5000,"البائع الأول",400]
["2021-01-08","غير معروف",5000,"البائع الظريف",null,500]
["2021-01-09","معروف",5000,"اللطيف",100]
["2021-01-10","استثمار",5000,"البائع الأول",200]
["2021-01-11","معروف",5000,"اللطيف",200]
["2021-01-12","غير معروف",5000,"البائع الظريف",null,400]
["2021-01-13","استثمار",5000,"البائع الأول",400]
["2021-01-14","غير معروف",5000,"البائع الظريف",null,500]
["2021-01-15","معروف",200,"اللطيف",100]
["2021-01-16","استثمار",5000,"البائع الأول",200]
["2021-01-17","معروف",5000,"اللطيف",200]
["2021-01-18","غير معروف",5000,"البائع الظريف",null,400]